bitfinex/quotes_ETHUSD_20241216
["timestamp","ask_amount","ask_price","bid_price","bid_amount"]
[1734342070428,0.7832,3954.5,3954.4,0.0288886]
[1734342070573,3.31196,3954.5,3954.4,0.0288886]
[1734342070777,3.31196,3954.5,3953.7,0.7848]
[1734342071191,3.31196,3954.5,3953.8,0.0276543]
[1734342073912,2.52851,3954.9,3953.8,0.56940495]
[1734342074100,3.28587,3954.8,3953.9,0.8719245]
[1734342074299,3.28587,3954.8,3954.0,0.02761437]
[1734342075021,3.28587,3954.8,3953.8,0.90740205]
[1734342075312,3.28587,3954.8,3953.9,2.92171189]
[1734342075516,3.28587,3954.8,3954.0,0.87195101]
[1734342075815,3.28587,3954.8,3953.9,0.76931202]
[1734342076013,3.28587,3954.8,3954.1,0.02756383]
[1734342076316,3.28587,3954.8,3953.9,0.74167768]
[1734342076317,2.52864,3954.7,3954.2,0.02755177]
[1734342076609,2.857234,3954.7,3954.2,0.02755177]
[1734342076823,2.857234,3954.7,3953.9,0.34036216]
[1734342076978,2.857234,3954.7,3954.3,0.02753181]
[1734342077277,2.857234,3954.7,3953.9,0.34036216]
[1734342077487,0.7573,3954.8,3954.0,0.02759169]
[1734342077695,0.7573,3954.8,3954.1,0.8319]
[1734342078000,0.7573,3954.8,3954.2,0.02755686]
[1734342078527,2.52839,3955.1,3954.2,0.02755686]
[1734342078678,2.52826,3955.3,3954.2,1.65766642]
[1734342078877,2.52826,3955.3,3954.4,0.8041]
[1734342079081,2.52826,3955.3,3954.5,0.02751738]
[1734342080317,2.52838,3955.1,3954.5,0.02751738]
[1734342081236,2.5286,3954.8,3954.5,0.02751738]
[1734342081441,0.8151,3954.7,3954.5,0.02751738]
[1734342081642,3.34373,3954.7,3954.0,0.7745]
[1734342082004,3.34373,3954.7,3954.1,0.02647251]
[1734342082203,0.8151,3954.7,3954.1,0.02647251]
[1734342083429,2.52836,3955.2,3954.1,0.05176006]
[1734342083744,3.58655606,3955.6,3954.5,0.8098]
[1734342084037,0.8158,3955.7,3954.7,0.8098]
[1734342084239,1.5877291,3956.0,3954.7,0.8098]
[1734342084240,0.8158,3956.0,3954.8,0.87153864]
[1734342084405,2.52803,3955.7,3954.8,0.89782281]
[1734342084602,2.52803,3955.7,3954.8,0.02628417]
[1734342084907,2.52844,3955.0,3954.8,0.02628417]
[1734342085212,0.7763,3955.0,3954.3,0.7667]
[1734342085430,2.52859,3954.8,3954.3,0.7667]
[1734342085623,2.52859,3954.8,3954.4,0.02520591]
[1734342086002,0.7763,3955.0,3954.4,0.02520591]
[1734342086210,2.52864,3954.7,3954.4,0.02520591]
[1734342086755,2.52864,3954.7,3954.5,0.02541504]
[1734342087254,2.52864,3954.7,3954.0,1.14866216]
[1734342087457,2.52851,3954.9,3954.6,0.02539508]
[1734342087759,2.52851,3954.9,3954.1,0.34036216]
[1734342088127,2.52851,3954.9,3954.2,0.02547491]
[1734342090258,2.52857,3954.8,3954.2,0.02547491]
[1734342092327,2.52857,3954.8,3954.3,0.87271093]
[1734342092539,2.52857,3954.8,3954.4,0.02544288]
[1734342092910,2.52857,3954.8,3954.1,0.34036216]
[1734342093140,1.77005734,3955.0,3954.2,2.20753533]
[1734342093371,2.05291168,3955.0,3954.2,0.0254828]
[1734342093696,2.52866,3954.7,3954.2,0.0254828]
[1734342094335,3.52241734,3954.7,3954.2,0.0254828]
[1734342094767,3.3048,3955.0,3954.3,0.87301682]
[1734342095075,0.7763,3955.0,3954.3,0.87301682]
[1734342095267,2.52851,3954.9,3954.4,0.02554472]
[1734342095837,2.52851,3954.9,3954.1,1.39669534]
[1734342096032,2.52851,3954.9,3954.2,2.56134834]
[1734342096346,2.52851,3954.9,3954.3,2.2079635]
[1734342096645,0.99375734,3954.9,3954.4,0.87295953]
[1734342096847,2.52882,3954.4,3954.3,0.02556467]
[1734342097169,2.52882,3954.4,3954.0,0.8083]
[1734342097945,0.99375734,3954.6,3954.0,0.8083]
[1734342098256,2.52882,3954.5,3954.0,0.8083]
[1734342099354,2.52858,3954.8,3954.1,2.18291614]
[1734342099665,2.52858,3954.8,3954.2,0.87321173]
[1734342099868,2.52864,3954.7,3954.0,1.14866216]
[1734342100072,2.52864,3954.7,3954.1,2.52318152]
[1734342100369,2.52871,3954.6,3954.2,2.18276272]
[1734342100555,2.52871,3954.6,3954.1,0.34036216]
[1734342100736,2.52871,3954.6,3954.2,0.87317717]
[1734342101743,2.52871,3954.6,3954.1,0.34036216]
[1734342101976,2.52871,3954.6,3954.2,0.8733253]
[1734342102171,2.52871,3954.6,3954.1,0.34036216]
[1734342102376,3.30475,3955.0,3954.2,2.18365924]
[1734342102671,2.52845,3955.0,3954.4,0.8222]
[1734342103036,1.05848606,3955.2,3954.5,0.02528713]
[1734342103242,3.58668606,3955.4,3954.4,1.16256216]
[1734342103443,3.58668606,3955.4,3954.6,0.8222]
[1734342103444,1.05848606,3955.4,3954.6,0.8222]
[1734342103646,5.4815388,3955.6,3954.6,0.8222]
[1734342103647,0.7675,3955.6,3954.7,2.1833921]
[1734342103860,2.52821,3955.4,3954.7,2.1833921]
[1734342104092,2.52821,3955.4,3954.8,0.02553418]
[1734342104269,2.52828,3955.3,3954.8,0.02553418]
[1734342104572,2.52833,3955.2,3954.6,0.8222]
[1734342104772,2.52833,3955.2,3954.9,0.02551423]
[1734342104961,2.52819,3955.4,3954.9,0.02551423]
[1734342105138,2.52819,3955.4,3954.6,0.8222]
[1734342105139,2.52827,3955.3,3954.6,0.8222]
[1734342105347,2.52827,3955.3,3955.0,0.02549428]
[1734342105546,2.52827,3955.3,3954.6,0.8222]
[1734342105750,2.52827,3955.3,3955.1,0.02547432]
[1734342105949,2.52827,3955.3,3954.6,0.8222]
[1734342106242,2.52827,3955.3,3955.2,0.02545437]
[1734342106470,2.52827,3955.3,3954.6,0.8222]
[1734342106471,3.00777033,3955.3,3954.6,0.8222]
[1734342106679,2.52835,3955.2,3954.6,0.8222]
[1734342106951,2.52835,3955.2,3954.7,0.02555414]
[1734342108365,0.47950033,3955.3,3954.7,0.02555414]
[1734342108563,0.44074725,3955.5,3954.7,0.02555414]
[1734342108564,1.49923331,3955.5,3954.7,0.02555414]
[1734342108775,1.05848606,3955.3,3954.7,0.02555414]
[1734342108978,2.52851,3954.9,3954.7,0.02555414]
[1734342109146,2.52851,3954.9,3954.3,0.7512]
[1734342109352,2.52851,3954.9,3954.8,0.02525374]
[1734342109550,2.52851,3954.9,3954.3,0.7512]
[1734342109751,2.52851,3954.9,3954.4,0.87364252]
[1734342109953,2.52851,3954.9,3954.4,0.89897609]
[1734342110259,2.52851,3954.9,3954.5,0.87360971]
[1734342110580,0.8004,3954.8,3954.4,0.02533357]
[1734342110880,0.8004,3954.8,3953.9,2.75126193]
[1734342110881,0.8004,3954.8,3953.9,1.88273318]
[1734342111096,0.8004,3954.8,3954.0,0.87391894]
[1734342111097,5.57554198,3954.8,3954.0,0.87391894]
[1734342111245,1.18805023,3954.7,3954.0,0.87391894]
[1734342111446,2.52886,3954.4,3953.9,0.8264]
[1734342112070,2.52889,3954.3,3953.9,0.8264]
[1734342113149,0.5055071,3954.6,3953.9,0.8264]
[1734342113462,2.52868,3954.7,3954.0,2.52510424]
[1734342113652,2.52868,3954.7,3954.1,0.87397682]
[1734342113860,1.84108606,3955.1,3954.2,2.18460051]
[1734342114056,1.84108606,3955.1,3954.3,2.99813756]
[1734342114057,0.7826,3955.1,3954.3,2.99813756]
[1734342114266,0.7826,3955.1,3954.4,2.18439551]
[1734342114571,0.7826,3955.1,3954.3,0.8137]
[1734342114875,0.7826,3955.1,3954.4,2.18403805]
[1734342115258,2.52844,3955.0,3954.4,2.18403805]
[1734342115850,2.52844,3955.0,3954.3,0.8137]
[1734342116067,2.52844,3955.0,3954.4,2.18405285]
[1734342116306,2.52844,3955.0,3954.3,0.8137]
[1734342116505,2.52851,3954.9,3954.4,0.87370473]
[1734342116809,2.52851,3954.9,3954.3,0.8137]
[1734342116950,2.52851,3954.9,3954.4,0.87378477]
[1734342117456,2.52858,3954.8,3954.4,0.87378477]
[1734342117706,2.52858,3954.8,3954.3,0.8137]
[1734342118057,2.51058,3954.8,3954.3,0.8137]
[1734342118987,2.51058,3954.8,3954.4,0.87395769]
[1734342119162,2.51058,3954.8,3954.4,0.89959055]
[1734342119362,2.51058,3954.8,3954.4,0.02563286]
[1734342120389,2.52876,3954.5,3954.4,0.02563286]
[1734342120552,3.35796,3954.5,3954.4,0.02563286]
[1734342120760,0.8292,3954.5,3953.9,0.7598]
[1734342120971,2.52883,3954.4,3953.9,0.7598]
[1734342121293,0.44165161,3954.4,3953.7,0.34036216]
[1734342121494,0.44165161,3954.4,3953.6,1.81613318]
[1734342121495,2.52902,3954.1,3953.8,0.87444037]
[1734342121796,2.5291,3954.0,3953.6,0.7598]
[1734342121955,2.5291,3954.0,3953.7,2.18490081]
[1734342122173,2.5291,3954.0,3953.6,0.7598]
[1734342122379,2.52927,3953.7,3953.3,1.81613318]
[1734342122596,0.8292,3953.9,3953.4,0.87389167]
[1734342122824,2.52914,3954.0,3953.4,0.87389167]
[1734342123018,0.8292,3954.2,3953.4,0.87389167]
[1734342123174,0.8292,3954.2,3953.3,0.7598]
[1734342123175,4.41667606,3954.2,3953.3,0.7598]
[1734342123387,0.71919606,3954.1,3953.2,0.39476287]
[1734342123587,0.71919606,3954.1,3953.0,1.81613318]
[1734342123588,2.52954,3953.3,3953.0,0.7598]
[1734342123777,2.52954,3953.3,3953.1,0.87389335]
[1734342123977,2.52954,3953.3,3952.8,1.05633318]
[1734342124336,0.8098,3953.6,3952.8,1.05633318]
[1734342124337,0.8098,3953.6,3952.9,0.87392048]
[1734342124538,3.33919,3953.6,3952.6,1.4512013]
[1734342124818,2.52979,3952.9,3952.7,0.87408493]
[1734342124980,2.52979,3952.9,3952.6,0.39486812]
[1734342125180,0.43976761,3953.5,3952.6,0.39486812]
[1734342125181,2.52967,3953.1,3952.6,0.39486812]
[1734342125376,2.52953,3953.3,3952.6,0.39486812]
[1734342125611,0.43976761,3953.5,3952.6,0.39486812]
[1734342125825,0.8098,3953.6,3952.6,0.39486812]
[1734342125826,2.5296,3953.2,3952.6,0.39486812]
[1734342126203,2.52967,3953.1,3952.6,0.39486812]
[1734342127584,0.37788876,3953.4,3952.6,0.39486812]
[1734342127778,2.52955,3953.3,3952.6,0.39486812]
[1734342129020,2.52941,3953.5,3952.6,0.73523028]
[1734342129229,2.52929,3953.7,3952.7,1.13466216]
[1734342129387,2.52939,3953.6,3952.7,1.13466216]
[1734342130045,2.52941,3953.5,3952.7,1.13466216]
[1734342130202,2.52947,3953.4,3952.7,1.13466216]
[1734342131809,2.52946,3953.5,3952.7,1.13466216]
[1734342132007,2.52948,3953.4,3952.7,1.13466216]
[1734342133799,2.52935,3953.6,3952.7,1.13466216]
[1734342134017,2.52935,3953.6,3952.8,0.02546514]
[1734342134226,0.40375361,3953.8,3952.8,0.02546514]
[1734342134544,2.52947,3953.4,3952.8,0.02546514]
[1734342137717,2.52955,3953.3,3952.8,0.02546514]
[1734342138095,2.52955,3953.3,3952.7,1.13466216]
[1734342138300,0.37220936,3953.7,3952.9,0.02594815]
[1734342138495,0.37220936,3953.7,3952.7,1.13466216]
[1734342138496,2.52941,3953.5,3952.8,0.02596813]
[1734342138701,2.52941,3953.5,3952.9,0.02594949]
[1734342139126,2.52941,3953.5,3952.7,1.13466216]
[1734342139332,2.52941,3953.5,3953.0,0.02592817]
[1734342139506,2.52941,3953.5,3952.7,1.13466216]
[1734342139712,2.52941,3953.5,3953.1,0.02590954]
[1734342139909,2.52941,3953.5,3952.7,1.13466216]
[1734342140110,2.52941,3953.5,3953.2,0.02588956]
[1734342140430,2.91901991,3953.5,3952.7,1.13466216]
[1734342140730,2.52941,3953.5,3953.3,0.02586958]
[1734342140935,0.7798,3953.6,3952.7,0.7943]
[1734342141121,3.30914,3953.6,3952.7,0.7943]
[1734342141440,2.52966,3953.1,3952.8,0.0259987]
[1734342141624,2.52966,3953.1,3952.7,0.7943]
[1734342141815,2.52956,3953.3,3952.9,0.02598961]
[1734342142016,0.58387,3953.3,3952.7,0.7943]
[1734342142233,2.5296,3953.2,3953.0,0.02597918]
[1734342142758,2.5296,3953.2,3952.7,0.7943]
[1734342143230,0.58387,3953.3,3952.7,0.7943]
[1734342143231,0.58387,3953.3,3952.8,0.02601914]
[1734342143432,2.5297,3953.1,3952.7,0.7943]
[1734342143633,2.841057,3953.1,3952.9,0.02597872]
[1734342143836,0.311357,3953.1,3952.3,1.14843004]
[1734342144022,2.52985,3952.8,3952.3,1.14843004]
[1734342144227,2.52989,3952.8,3952.3,0.7535]
[1734342146408,0.311357,3953.1,3952.3,0.7535]
[1734342146606,2.52998,3952.6,3952.0,0.7736]
[1734342147633,2.53014,3952.4,3952.0,0.7736]
[1734342147946,0.7861,3952.6,3952.0,0.7736]
[1734342148111,0.96415798,3952.6,3952.0,0.7736]
[1734342148308,2.53006,3952.5,3952.0,0.7736]
[1734342148808,0.96415798,3952.6,3952.0,0.7736]
[1734342149049,2.53013,3952.4,3952.1,0.02579811]
[1734342149208,0.96415798,3952.6,3952.1,0.02579811]
[1734342149209,1.95863776,3952.6,3952.1,0.02579811]
[1734342149546,2.53023,3952.3,3952.0,0.7736]
[1734342149905,2.53023,3952.3,3951.4,3.73533987]
[1734342149906,2.53023,3952.2,3952.1,0.02579811]
[1734342150450,2.53023,3952.2,3951.6,0.7736]
[1734342150748,2.53023,3952.2,3952.1,0.02595614]
[1734342150911,2.53023,3952.2,3951.6,0.7736]
[1734342151107,2.53023,3952.2,3952.1,0.02595614]
[1734342151413,2.82813858,3952.2,3952.1,0.02601222]
[1734342151606,2.82813858,3952.2,3951.6,0.7736]
[1734342151833,2.53023,3952.2,3951.6,0.7736]
[1734342152139,2.53023,3952.2,3951.7,0.02609216]
[1734342152348,0.44885578,3952.5,3951.7,0.02609216]
[1734342152547,2.5303,3952.1,3951.7,0.02609216]
[1734342152790,2.53043,3951.9,3951.7,0.02609216]
[1734342153048,2.85887063,3951.9,3951.7,0.02609216]
[1734342153411,2.53049,3951.8,3951.7,0.02609216]
[1734342153607,0.44885578,3952.5,3951.7,0.02609216]
[1734342153812,0.44885578,3952.5,3951.4,0.8287]
[1734342153813,2.53038,3952.0,3951.4,0.8287]
[1734342154046,2.5305,3951.8,3951.4,0.8287]
[1734342154220,2.5305,3951.8,3951.5,0.02616783]
[1734342154622,0.99447978,3952.1,3951.5,0.02616783]
[1734342154858,0.7878,3952.0,3951.2,0.8119]
[1734342155133,2.53068,3951.5,3951.2,0.8119]
[1734342155346,2.5308,3951.4,3950.9,0.8119]
[1734342155547,2.5308,3951.4,3951.3,0.02631489]
[1734342155723,0.17822798,3951.9,3950.9,0.8119]
[1734342155921,2.53067,3951.6,3950.9,0.8119]
[1734342156227,2.53065,3951.6,3951.0,0.02636697]
[1734342156427,2.53069,3951.5,3951.0,0.02636697]
[1734342156839,1.18298945,3952.9,3951.4,0.8119]
[1734342156840,3.3176,3952.9,3951.4,0.8119]
[1734342157024,0.7878,3952.9,3951.7,0.8119]
[1734342157255,2.52997,3952.7,3951.7,0.8119]
[1734342157537,0.17822798,3952.8,3951.8,0.02644442]
[1734342157776,2.52998,3952.6,3951.8,0.02644442]
[1734342157936,0.17822798,3952.8,3951.8,0.02644442]
[1734342157937,2.53006,3952.5,3951.8,0.02644442]
[1734342158418,2.70813798,3952.8,3951.8,0.02644442]
[1734342158619,0.70201878,3952.7,3951.8,0.02644442]
[1734342158822,3.23196878,3952.7,3951.8,0.02644442]
[1734342159345,2.52998,3952.6,3951.8,0.02644442]
[1734342160554,3.23198878,3952.7,3951.8,0.02644442]
[1734342163321,2.52997,3952.7,3951.8,0.02644442]
[1734342164349,2.52998,3952.6,3951.8,0.02644442]
[1734342165755,0.99447978,3952.7,3951.8,0.02644442]
[1734342166058,0.99447978,3952.4,3951.8,0.02644442]
[1734342166285,2.53018,3952.3,3951.8,0.02644442]
[1734342167336,0.99447978,3952.7,3951.8,0.02644442]
[1734342167537,2.53005,3952.5,3951.8,0.02644442]
[1734342168258,3.52439978,3952.7,3951.9,0.7566]
[1734342168433,3.52439978,3952.7,3951.9,0.78282145]
[1734342169538,2.52992,3952.7,3951.9,0.78282145]
[1734342170149,2.52953,3953.3,3952.3,0.7869]
[1734342170358,2.52953,3953.3,3952.4,0.825]
[1734342170566,2.52953,3953.3,3952.4,0.85106776]
[1734342170749,2.52966,3953.1,3952.4,0.85106776]
[1734342171060,2.52972,3953.0,3952.4,0.85106776]
[1734342171263,0.99447978,3953.3,3952.4,0.85106776]
[1734342171441,2.88204198,3953.2,3952.4,0.85106776]
[1734342171643,2.52971,3953.1,3952.4,0.85106776]
[1734342171965,0.99447978,3952.7,3951.9,0.8001]
[1734342172129,2.52998,3952.6,3952.5,0.02580308]
[1734342172468,2.53011,3952.4,3951.9,0.8001]
[1734342175032,2.88243598,3952.6,3951.9,0.8001]
[1734342175231,10.5614952,3955.1,3952.4,0.7917]
[1734342175232,2.52954,3953.3,3952.4,0.7917]
[1734342175484,2.52954,3953.3,3952.5,0.02580308]
[1734342175683,2.5294,3953.5,3952.6,0.7917]
[1734342176169,2.5294,3953.5,3952.7,0.02576313]
[1734342176480,2.5294,3953.5,3952.8,0.7917]
[1734342176838,2.5294,3953.5,3952.9,0.02572318]
[1734342177271,0.33147,3953.5,3952.9,0.02572318]
[1734342177463,0.7853,3953.7,3952.9,0.02572318]
[1734342177764,0.7853,3953.7,3952.8,0.7917]
[1734342177765,0.7853,3953.7,3952.3,0.7917]
[1734342177968,2.52979,3952.9,3952.3,0.7917]
[1734342178265,2.15470112,3953.4,3952.4,0.02582306]
[1734342178266,2.52967,3953.1,3952.4,0.02582306]
[1734342178436,0.252967,3953.0,3952.4,0.02582306]
[1734342178642,2.52974,3953.0,3952.3,0.7917]
[1734342179448,2.52979,3952.9,3952.3,0.7917]
[1734342179874,2.52979,3952.9,3952.4,0.02582306]
[1734342180234,2.52979,3952.9,3952.3,0.7917]
[1734342180771,2.52979,3952.9,3952.4,0.02582306]
[1734342181069,2.52979,3952.9,3952.3,0.7917]
[1734342181472,1.013379,3952.9,3952.4,0.02583096]
[1734342181679,2.782819,3952.9,3952.5,0.8119]
[1734342182090,1.05848606,3953.5,3952.5,0.8119]
[1734342182371,2.93800486,3953.9,3952.5,0.8119]
[1734342182372,0.821,3953.9,3952.7,0.8119]
[1734342182739,0.821,3953.9,3952.6,0.36590336]
[1734342182740,0.821,3953.9,3952.9,0.8119]
[1734342182941,2.52933,3953.7,3952.9,0.8119]
[1734342183173,2.97019451,3953.6,3953.0,0.0254613]
[1734342183573,2.97019451,3953.6,3952.9,0.8119]
[1734342184274,0.44083451,3953.6,3953.0,0.0254613]
[1734342184473,2.52948,3953.4,3953.0,0.0254613]
[1734342184674,1.0580151,3953.8,3953.0,0.34036216]
[1734342184875,3.5871651,3953.9,3953.2,0.7939]
[1734342185075,1.0580151,3954.0,3953.2,0.7939]
[1734342185296,2.52934,3953.6,3953.2,0.7939]
[1734342186639,0.59487878,3953.9,3953.2,0.7939]
[1734342186640,1.65289388,3953.9,3953.2,0.7939]
[1734342186846,2.52948,3953.4,3952.7,0.7667]
[1734342187176,2.52948,3953.4,3952.8,0.02545192]
[1734342187783,2.52927,3953.7,3952.8,0.02545192]
[1734342188002,2.52965,3953.2,3952.8,0.02545192]
[1734342188475,2.52965,3953.2,3952.7,0.7667]
[1734342188979,2.52965,3953.2,3952.8,0.02542932]
[1734342189347,2.52965,3953.2,3952.7,0.7667]
[1734342189794,2.52965,3953.2,3952.8,0.02542932]
[1734342190144,2.52965,3953.2,3952.7,0.7667]
[1734342190340,2.52965,3953.2,3952.9,0.02540935]
[1734342190563,2.52965,3953.2,3952.8,0.02542932]
[1734342190841,2.52967,3953.1,3952.9,0.02540935]
[1734342191274,2.52967,3953.1,3952.7,0.7667]
[1734342191679,2.52967,3953.1,3952.8,0.02542932]
[1734342192071,2.52967,3953.1,3952.7,0.7667]
[1734342192265,3.34288,3953.6,3952.7,0.7667]
[1734342192581,2.52953,3953.3,3952.8,0.02508276]
[1734342192889,2.52928,3953.7,3952.4,1.01202]
[1734342193043,2.47259388,3953.9,3952.9,0.02503266]
[1734342193044,2.52934,3953.6,3952.9,0.02503266]
[1734342193248,2.52934,3953.6,3953.0,0.8189]
[1734342193449,2.52934,3953.6,3953.1,0.02493157]
[1734342193654,2.52934,3953.6,3953.0,0.8189]
[1734342194152,2.52934,3953.6,3953.1,0.02493157]
[1734342194688,2.52921,3953.8,3953.0,0.8189]
[1734342195503,1.0580151,3954.0,3953.0,0.8189]
[1734342195713,2.52928,3953.7,3953.0,0.8189]
[1734342196307,2.52928,3953.7,3953.1,0.02493157]
[1734342196651,2.52928,3953.7,3953.0,0.8189]
[1734342196953,2.52928,3953.7,3953.1,0.0248391]
[1734342197361,2.52928,3953.7,3953.0,0.8189]
[1734342197790,2.52928,3953.7,3953.1,0.02483121]
[1734342198166,2.52928,3953.7,3953.0,0.8189]
[1734342198568,2.52928,3953.7,3953.1,0.02483121]
[1734342198968,2.52928,3953.7,3953.0,0.8189]
[1734342199490,2.52928,3953.7,3953.1,0.02483121]
[1734342199689,0.34162378,3953.9,3953.1,0.02483121]
[1734342199883,0.34162378,3953.9,3953.0,0.8189]
[1734342199884,2.52915,3953.9,3953.0,0.8189]
[1734342201061,3.0,3953.8,3953.0,0.8189]
[1734342201503,3.0,3953.8,3953.2,0.7968]
[1734342202060,2.52902,3954.1,3953.2,0.7968]
[1734342202293,1.0580151,3954.4,3953.4,0.7519]
[1734342202471,6.5867951,3954.5,3953.4,0.7519]
[1734342202682,6.5867951,3954.5,3953.5,0.02443586]
[1734342202888,5.52878,3954.5,3953.6,0.7519]
[1734342203192,0.40011878,3954.4,3953.6,0.7519]
[1734342203489,1.0580151,3954.6,3953.6,0.7519]
[1734342203690,1.18099667,3954.5,3953.6,0.7519]
[1734342203878,2.52908,3954.0,3953.7,0.02419172]
[1734342204079,2.52908,3954.0,3953.6,0.7519]
[1734342204595,1.0580151,3954.5,3953.7,0.02418419]
[1734342204596,2.52896,3954.2,3953.7,0.02418419]
[1734342204835,2.781916,3954.1,3953.7,0.02418419]
[1734342205105,2.52902,3954.1,3953.8,0.02416423]
[1734342205456,2.52902,3954.1,3953.6,0.7519]
[1734342207222,2.52889,3954.3,3953.6,0.7519]
[1734342207399,2.52908,3954.1,3953.6,0.7519]
[1734342207614,2.88140513,3954.1,3953.6,0.7519]
[1734342208910,0.35232513,3954.1,3953.6,0.7519]
[1734342209089,2.52918,3953.9,3953.6,0.7519]
[1734342209873,3.52305131,3954.4,3953.6,0.7519]
[1734342209874,2.52922,3953.8,3953.6,0.7519]
[1734342210709,3.31999,3954.3,3953.6,0.7519]
[1734342210911,3.31999,3954.3,3952.8,0.7867]
[1734342210912,0.99417131,3953.8,3952.8,0.7867]
[1734342211116,2.52946,3953.5,3952.8,1.30502791]
[1734342211286,2.52947,3953.4,3952.9,0.02430819]
[1734342212882,2.52956,3953.3,3952.9,0.02430819]
[1734342213598,2.52936,3953.6,3952.9,0.02430819]
[1734342213800,2.52918,3953.9,3953.1,0.8247]
[1734342214001,2.52918,3953.9,3953.1,1.02483677]
[1734342214219,2.52918,3953.9,3953.3,0.8247]
[1734342214513,2.52921,3953.8,3953.3,0.8247]
[1734342214715,1.0580151,3954.2,3953.3,1.16506216]
[1734342214907,3.5868651,3954.4,3953.5,0.7594]
[1734342215090,2.52885,3954.4,3953.5,0.7594]
[1734342215296,2.52885,3954.4,3953.6,0.78373307]
[1734342216460,3.03869426,3954.4,3953.6,0.78373307]
[1734342216767,0.50984426,3954.4,3953.6,0.91232381]
[1734342216885,1.0580151,3954.8,3953.6,0.91232381]
[1734342216886,1.0580151,3954.8,3953.7,0.8023]
[1734342217242,3.5864551,3955.0,3953.8,0.8023]
[1734342217460,2.52844,3955.0,3953.8,0.82654798]
[1734342217590,0.99417131,3955.2,3954.1,0.7966]
[1734342217894,3.52249131,3955.2,3954.2,0.82084351]
[1734342218108,2.52832,3955.2,3954.2,0.82084351]
[1734342219521,2.52838,3955.1,3954.2,0.82084351]
[1734342219697,2.52851,3954.9,3954.2,0.82084351]
[1734342220094,1.0580151,3955.3,3954.2,0.82084351]
[1734342220095,2.52838,3955.1,3954.2,0.82084351]
[1734342220288,2.52848,3955.0,3954.2,0.82084351]
[1734342220493,0.252848,3955.0,3954.2,0.82084351]
[1734342220811,2.5285,3955.0,3954.2,0.82084351]
[1734342221324,3.0,3954.9,3954.2,0.82084351]
[1734342222095,3.0,3954.9,3954.2,0.7966]
[1734342222415,3.0,3954.9,3954.3,0.02407305]
[1734342222622,1.0580151,3955.4,3954.4,0.7595]
[1734342222623,3.0,3955.2,3954.4,0.7595]
[1734342222933,3.0,3955.4,3954.4,0.7595]
[1734342223254,2.52847,3955.0,3954.4,0.7595]
[1734342223793,2.52857,3954.8,3954.4,0.7595]
[1734342225432,2.52844,3955.0,3954.4,0.7595]
[1734342226304,0.73378851,3955.3,3954.4,0.7595]
[1734342226508,2.52858,3954.8,3954.4,0.7595]
[1734342227114,2.52865,3954.7,3954.4,0.7595]
[1734342228098,2.52871,3954.6,3954.4,0.7595]
[1734342229330,0.252858,3954.8,3954.4,0.7595]
[1734342229701,2.52864,3954.7,3954.4,0.7595]
[1734342230503,0.252858,3954.8,3954.4,0.7595]
[1734342230504,2.52871,3954.6,3954.4,0.7595]
[1734342230836,2.52876,3954.5,3954.4,0.7595]
[1734342231153,2.52876,3954.5,3953.2,2.92487195]
[1734342231154,2.52896,3954.2,3953.8,0.7869]
[1734342231524,2.52896,3954.2,3953.9,0.02382092]
[1734342231843,2.52903,3954.1,3953.9,0.02382092]
[1734342232005,2.52903,3954.1,3953.8,0.7869]
[1734342232209,0.333636,3954.2,3953.9,0.02303023]
[1734342232439,2.5289,3954.3,3953.8,0.7869]
[1734342232648,0.2781568,3954.6,3953.8,0.7869]
[1734342232649,2.52877,3954.5,3953.9,0.02271442]
[1734342232843,2.52877,3954.5,3953.8,0.7869]
[1734342233008,0.2781568,3954.6,3953.9,0.02271442]
[1734342233211,0.2781568,3954.6,3953.8,0.7869]
[1734342233408,2.52883,3954.4,3953.9,0.02271442]
[1734342233659,2.52883,3954.4,3953.8,0.7869]
[1734342233947,0.36224868,3954.4,3953.9,0.02271442]
[1734342234147,2.52902,3954.1,3953.9,0.02271442]
[1734342234348,2.52902,3954.1,3953.8,0.7869]
[1734342236245,2.52885,3954.4,3953.9,0.02271442]
[1734342241718,2.52861,3954.8,3954.0,0.8094]
[1734342241971,0.44029251,3954.8,3954.0,0.8094]
[1734342242186,0.8163,3955.0,3954.1,0.02283746]
[1734342242323,3.34478,3955.0,3954.1,0.02283746]
[1734342242523,2.52877,3954.5,3954.1,0.02283746]
[1734342242767,2.52877,3954.5,3954.0,0.8094]
[1734342242968,2.52877,3954.5,3954.2,0.02283278]
[1734342243126,2.52877,3954.5,3954.1,0.02285274]
[1734342243327,2.52877,3954.5,3954.0,0.8094]
[1734342243527,2.52861,3954.8,3954.2,0.02283278]
[1734342243759,2.52861,3954.8,3954.1,0.02285274]
[1734342243965,2.52873,3954.6,3954.3,0.02280493]
[1734342244296,2.52877,3954.5,3954.0,0.8094]
[1734342244586,2.52861,3954.8,3954.0,0.8094]
[1734342244888,2.52861,3954.8,3954.1,0.02284485]
[1734342245928,1.8743151,3955.2,3954.2,0.7571]
[1734342246191,2.5285,3955.0,3954.2,0.7571]
[1734342246461,2.5285,3955.0,3954.3,0.02257577]
[1734342248058,0.73378851,3955.3,3954.3,0.02257577]
[1734342248282,2.52845,3955.0,3954.3,0.02257577]
[1734342250665,2.52852,3954.9,3954.3,0.02257577]
[1734342251630,2.52838,3955.1,3954.3,0.02257577]
[1734342251865,3.26204851,3955.3,3954.4,0.7704]
[1734342252065,3.26204851,3955.3,3954.5,0.02243401]
[1734342252358,2.52832,3955.2,3954.4,0.7704]
[1734342252930,2.52832,3955.2,3954.5,0.02240855]
[1734342257175,2.52837,3955.2,3954.5,0.02240855]
[1734342257370,2.52837,3955.2,3954.7,20.0]
[1734342257789,2.52837,3955.2,3954.8,0.02235657]
[1734342258108,2.52837,3955.2,3954.9,0.8135]
[1734342258306,2.52837,3955.2,3954.9,0.83905563]
[1734342259305,3.52200984,3955.7,3954.9,0.83905563]
[1734342259306,2.52838,3955.1,3954.9,0.83905563]
[1734342261404,3.5862851,3955.3,3954.9,0.83905563]
[1734342261608,2.52827,3955.3,3954.9,0.83905563]
[1734342263077,1.0580151,3955.4,3954.9,0.83905563]
[1734342263474,3.5862051,3955.4,3954.9,0.83905563]